bitfinex-derivatives/quotes_SOLF0:USTF0_20240925
["timestamp","ask_amount","ask_price","bid_price","bid_amount"]
[1727224296195,11.02,152.67,152.56,11.02]
[1727224296384,11.02,152.67,152.56,13.6801]
[1727224296586,3.2753,152.65,152.58,3.2767]
[1727224296781,11.02,152.65,152.56,2.6601]
[1727224297187,3.2755,152.64,152.56,2.6601]
[1727224297383,11.02,152.67,152.56,13.6801]
[1727224297783,14.2948,152.67,152.6,3.2761]
[1727224297996,13.56261787,152.66,152.6,3.2761]
[1727224298496,11.02,152.67,152.56,13.6801]
[1727224298699,11.02,152.65,152.56,13.6801]
[1727224298904,3.2755,152.64,152.58,3.2767]
[1727224302096,3.2755,152.64,152.59,3.2765]
[1727224302297,3.2753,152.65,152.56,13.6801]
[1727224302496,3.2753,152.65,152.58,11.02]
[1727224303494,3.2753,152.65,152.6,3.2763]
[1727224304291,3.2755,152.64,152.6,3.2763]
[1727224305903,11.02,152.65,152.56,13.6801]
[1727224306701,3.2758,152.63,152.58,3.2765]
[1727224306900,3.2758,152.63,152.56,13.6801]
[1727224307291,3.2754,152.65,152.56,13.6801]
[1727224307497,3.34938965,152.66,152.58,11.02]
[1727224308900,3.2755,152.64,152.6,3.2762]
[1727224309507,3.34938965,152.66,152.59,3.2765]
[1727224309508,3.2757,152.63,152.59,3.2765]
[1727224309904,3.34938965,152.66,152.56,13.6801]
[1727224310204,3.2755,152.64,152.56,13.6801]
[1727224310598,3.2755,152.64,152.59,3.2764]
[1727224310899,11.02,152.67,152.56,13.6801]
[1727224310900,6.5431,152.83,152.62,11.02]
[1727224311099,11.02,152.75,152.65,11.02]
[1727224311403,3.21204435,152.74,152.65,11.02]
[1727224311601,11.02,152.75,152.65,11.02]
[1727224312200,3.2348164,152.74,152.65,11.02]
[1727224312807,11.02,152.75,152.65,11.02]
[1727224313308,14.35114335,152.75,152.65,11.02]
[1727224313711,3.2739,152.72,152.65,11.02]
[1727224314210,14.35114335,152.75,152.65,11.02]
[1727224315904,3.2738,152.72,152.67,3.2748]
[1727224317107,3.274,152.71,152.67,3.2748]
[1727224317305,3.274,152.71,152.66,3.275]
[1727224317510,11.02,152.73,152.64,1.3753]
[1727224317713,3.2743,152.7,152.65,3.2751]
[1727224317914,3.2743,152.7,152.64,1.3753]
[1727224318117,14.35114335,152.75,152.65,11.02]
[1727224318411,3.2736,152.73,152.68,3.2745]
[1727224318908,3.2736,152.73,152.69,3.2744]
[1727224319615,3.2738,152.72,152.68,3.2745]
[1727224320216,3.2741,152.71,152.66,3.275]
[1727224320510,11.02,152.73,152.66,3.275]
[1727224320715,11.02,152.73,152.64,1.3753]
[1727224321411,3.2743,152.7,152.66,3.275]
[1727224322214,3.26245085,152.75,152.65,11.02]
[1727224322512,11.02,152.75,152.65,11.02]
[1727224322715,14.21823066,152.75,152.65,11.02]
[1727224323216,3.2739,152.72,152.65,11.02]
[1727224323718,3.2739,152.72,152.67,3.2747]
[1727224324107,14.21823066,152.75,152.65,11.02]
[1727224324310,14.21823066,152.75,152.66,3.275]
[1727224324612,3.2743,152.7,152.66,3.275]
[1727224324810,14.21823066,152.75,152.66,3.275]
[1727224325518,3.2742,152.7,152.66,3.275]
[1727224327414,14.21823066,152.75,152.65,11.02]
[1727224327910,3.2745,152.69,152.65,11.02]
[1727224328716,3.2745,152.69,152.65,14.2952]
[1727224328915,3.2745,152.69,152.65,11.02]
[1727224329710,3.2745,152.69,152.65,14.2952]
[1727224330220,11.02,152.78,152.67,11.02]
[1727224330518,11.02,152.78,152.7,3.2741]
[1727224330818,11.02,152.78,152.69,3.2744]
[1727224331009,11.02,152.76,152.66,11.02]
[1727224331211,11.02,152.74,152.66,11.02]
[1727224331419,3.2741,152.71,152.66,14.2949]
[1727224334214,3.33671255,152.73,152.64,12.3953]
[1727224334411,11.02,152.74,152.64,12.3953]
[1727224334614,11.02,152.7,152.63,338.0]
[1727224334822,11.02,152.68,152.59,12.3463]
[1727224336017,93.21914819,152.73,152.59,12.3463]
[1727224336225,11.02,152.67,152.59,12.3463]
[1727224336523,3.2757,152.63,152.59,12.3463]
[1727224336919,11.02,152.67,152.59,12.3463]
[1727224337118,3.2755,152.64,152.6,3.2763]
[1727224337318,3.25804956,152.65,152.59,1.3263]
[1727224337515,11.02,152.67,152.59,1.3263]
[1727224338224,3.2758,152.63,152.59,1.3263]
[1727224338629,3.20658942,152.65,152.59,1.3263]
[1727224338832,11.02,152.66,152.59,1.3263]
[1727224339022,3.276,152.62,152.59,1.3263]
[1727224339925,3.2761,152.61,152.59,1.3263]
[1727224340129,3.35539772,152.64,152.56,3.2771]
[1727224340328,6.5476,152.72,152.56,3.2771]
[1727224340626,11.02,152.69,152.58,11.02]
[1727224340818,11.02,152.69,152.59,1.3957]
[1727224341218,11.02,152.69,152.61,3.2761]
[1727224342026,11.02,152.69,152.62,3.2759]
[1727224342232,11.02,152.72,152.6,12.3733]
[1727224342528,3.2749,152.67,152.6,13.7205]
[1727224342930,11.02,152.72,152.6,13.7205]
[1727224343124,11.02,152.69,152.6,13.7205]
[1727224343528,11.02,152.69,152.6,2.7005]
[1727224343923,11.02,152.69,152.6,1.3533]
[1727224344726,3.2756,152.64,152.6,1.3533]
[1727224345027,11.02,152.69,152.6,1.3533]
[1727224345325,90.5240869,152.92,152.68,11.02]
[1727224345629,11.02,152.86,152.76,11.02]
[1727224345825,11.02,152.86,152.77,1.3772]
[1727224346030,11.02,152.85,152.77,1.3772]
[1727224346824,3.2716,152.82,152.77,1.3772]
[1727224347029,3.35407388,152.84,152.73,11.02]
[1727224347330,3.35407388,152.84,152.75,11.02]
[1727224347833,11.02,152.86,152.75,11.02]
[1727224348327,3.2715,152.83,152.75,17.6]
[1727224348724,3.2053969,152.84,152.75,17.6]
[1727224348923,3.2719,152.81,152.75,20.8729]
[1727224349425,3.27678805,152.84,152.75,17.6]
[1727224349624,17.6,152.87,152.75,17.6]
[1727224350426,1.3275,152.9,152.75,17.6]
[1727224350626,1.3275,152.9,152.72,17.6]
[1727224350627,18.9275,152.9,152.77,17.6]
[1727224350827,18.9275,152.9,152.78,3.8926]
[1727224351336,18.9275,152.9,152.79,3.2721]
[1727224351532,1.3275,152.9,152.79,3.2721]
[1727224351731,17.6,152.89,152.79,3.2721]
[1727224353036,17.6,152.87,152.78,3.8926]
[1727224353338,17.6,152.81,152.68,338.0]
[1727224353526,3.2725,152.78,152.69,3.9376]
[1727224354132,3.2725,152.78,152.72,3.2735]
[1727224354731,3.2723,152.79,152.7,17.6]
[1727224355837,20.87908042,152.81,152.7,17.6]
[1727224356631,20.87908042,152.81,152.7,355.6]
[1727224356833,3.2725,152.78,152.73,3.2734]
[1727224357636,3.2723,152.79,152.7,355.6]
[1727224357842,17.6,152.81,152.7,355.6]
[1727224358141,17.6,152.81,152.75,3.2729]
[1727224358333,3.32842077,152.82,152.75,3.2729]
[1727224358531,13.59772438,152.83,152.7,355.6]
[1727224358738,3.272,152.81,152.76,3.2728]
[1727224362638,3.272,152.81,152.77,3.2727]
[1727224362946,3.272,152.81,152.7,355.6]
[1727224363137,20.79348922,152.84,152.7,355.6]
[1727224363138,3.2716,152.82,152.7,355.6]
[1727224363351,3.2716,152.82,152.76,3.2727]
[1727224365053,3.2716,152.82,152.77,3.2727]
[1727224365757,17.6,152.88,152.75,17.6]
[1727224365955,17.6,152.88,152.76,3.9713]
[1727224366855,17.6,152.86,152.76,3.9713]
[1727224367757,3.2716,152.83,152.76,3.9713]
[1727224368665,3.2707,152.87,152.77,17.6]
[1727224369062,3.2707,152.87,152.82,3.2716]
[1727224369557,3.2707,152.87,152.77,17.6]
[1727224369558,3.2707,152.87,152.81,3.2716]
[1727224369753,3.2707,152.87,152.77,17.6]
[1727224370358,3.2702,152.89,152.83,3.2714]
[1727224370559,10.99,152.91,152.83,3.2714]
[1727224370859,10.99,152.91,152.84,1.2614]
[1727224371257,24.59735374,152.91,152.84,1.2614]
[1727224371652,3.2701,152.89,152.84,4.5324]
[1727224372651,3.2704,152.88,152.84,1.2614]
[1727224373261,3.2701,152.89,152.84,4.5326]
[1727224373960,19.64,153.11,152.87,17.58]
[1727224374259,17.58,153.03,152.9,17.58]
[1727224374460,13.60212352,153.02,152.91,1.3071]
[1727224375151,13.60212352,153.02,152.86,3.20589869]
[1727224375357,17.58,153.01,152.87,1.3071]
[1727224375657,3.2684,152.98,152.91,3.2696]
[1727224376263,3.2684,152.98,152.88,17.58]
[1727224376264,3.2682,152.98,152.92,3.2694]
[1727224376458,17.58,153.01,152.92,3.2694]
[1727224376760,3.2684,152.98,152.92,3.2694]
[1727224377660,17.58,153.01,152.92,3.2694]
[1727224378065,17.58,153.01,152.93,3.2692]
[1727224378259,3.2681,152.99,152.93,3.2692]
[1727224378564,17.58,153.01,152.88,17.58]
[1727224378864,3.2686,152.97,152.88,17.58]
[1727224379163,3.2686,152.97,152.89,2.6143]
[1727224379365,3.2683,152.98,152.92,3.2693]
[1727224379559,17.58,153.01,152.92,3.2693]
[1727224379956,3.21735417,153.03,152.92,3.2693]
[1727224380158,17.58,153.02,152.92,3.2693]
[1727224380361,20.90809944,153.02,152.92,3.2693]
[1727224380664,3.2683,152.98,152.89,2.6143]
[1727224381164,3.2683,152.98,152.92,3.2693]
[1727224381465,3.268,152.99,152.9,17.58]
[1727224382462,3.2682,152.98,152.9,17.58]
[1727224382661,20.90809944,153.02,152.89,2.6143]
[1727224383159,3.2683,152.98,152.92,3.2695]
[1727224383661,3.2683,152.98,152.89,2.6143]
[1727224384171,20.90809944,153.02,152.9,17.58]
[1727224384362,2.7113,153.04,152.9,17.58]
[1727224384565,3.268,152.99,152.94,3.2689]
[1727224385261,3.268,152.99,152.95,3.2688]
[1727224385468,3.21658045,153.02,152.95,3.2688]
[1727224385469,3.2678,153.0,152.95,3.2688]
[1727224385659,3.21658045,153.02,152.89,2.6143]
[1727224385861,20.2913,153.04,152.89,20.1943]
[1727224386258,18.9229,153.04,152.89,20.1943]
[1727224386465,18.9229,153.04,152.95,3.2687]
[1727224387664,3.2677,153.01,152.95,3.2687]
[1727224388866,1.359,153.1,152.96,17.58]
[1727224389066,1.359,153.1,152.99,17.58]
[1727224389272,3.2664,153.07,153.01,3.2674]
[1727224389961,3.2665,153.06,153.01,3.2674]
[1727224390470,3.2669,153.04,152.99,3.2678]
[1727224391361,20.87310341,153.06,152.97,2.7456]
[1727224391566,17.58,153.06,152.97,2.7456]
[1727224391962,1.277,153.05,152.97,2.7456]
[1727224392269,3.2675,153.02,152.97,6.0138]
[1727224393874,17.58,153.04,152.94,78.02299978]
[1727224394375,3.2678,153.0,152.95,3.2687]
[1727224395169,3.2678,153.0,152.94,78.02299978]
[1727224395170,3.2676,153.01,152.96,3.2686]
[1727224395673,3.2678,153.0,152.96,3.2686]
[1727224396372,10.99,153.04,152.96,3.2686]
[1727224396373,3.2676,153.01,152.96,3.2686]
[1727224396769,10.99,153.02,152.95,3.2688]
[1727224396976,10.99,153.0,152.93,1.3286]
[1727224397176,10.99,152.98,152.93,1.3286]
[1727224397469,3.2688,152.96,152.93,1.3286]
[1727224397771,1.277,153.05,152.94,10.99]
[1727224398078,10.99,153.03,152.93,1.3286]
[1727224398571,3.2678,153.0,152.93,1.3286]
[1727224398771,10.99,153.03,152.93,1.3286]
[1727224399577,3.2676,153.01,152.95,3.2687]
[1727224400271,3.2674,153.02,152.96,3.2686]
[1727224403575,14.2574,153.02,152.96,3.2686]
[1727224404369,10.99,153.02,152.93,1.3286]
[1727224405275,10.99,153.04,152.94,10.99]
[1727224406279,3.2673,153.03,152.97,3.2682]
[1727224406677,2.6712,153.05,152.94,10.99]
[1727224406875,10.99,153.02,152.96,3.2685]
[1727224407275,10.99,153.02,152.94,10.99]
[1727224407478,14.2574,153.02,152.96,3.2685]
[1727224408473,14.2574,153.02,152.93,1.3286]
[1727224408474,10.99,153.02,152.95,3.2688]
[1727224408775,10.99,153.0,152.95,3.2688]
[1727224409371,10.99,153.0,152.96,3.2686]
[1727224409581,10.99,153.03,152.93,1.3286]
[1727224409985,13.6612,153.05,152.97,3.2683]
[1727224410280,13.6612,153.05,152.94,10.99]
[1727224410586,3.2672,153.03,152.97,3.2683]
[1727224412274,3.2672,153.03,152.97,2.2783]
[1727224412480,3.2673,153.02,152.97,2.2783]
[1727224414984,3.268,152.99,152.94,3.2689]
[1727224415174,10.99,152.99,152.93,1.3286]
[1727224415580,6.5979272,152.98,152.93,4.5978]
[1727224417185,3.2687,152.96,152.89,2.6358]
[1727224417684,3.2688,152.95,152.91,3.2696]
[1727224421578,15.51910018,152.97,152.89,3.27]
[1727224421779,10.99,152.95,152.86,12.33]
[1727224422189,4.52910018,152.97,152.86,12.33]
[1727224422387,10.99,152.95,152.86,12.33]
[1727224422791,3.2696,152.92,152.88,3.2703]
[1727224423492,3.2693,152.93,152.89,3.2701]
[1727224424499,3.2693,152.93,152.88,3.2703]
[1727224424693,10.99,152.95,152.86,1.34]
[1727224425492,10.99,152.95,152.87,3.2705]
[1727224425893,3.2696,152.92,152.87,3.2705]
[1727224426891,10.99,152.95,152.87,3.2705]
[1727224426892,3.2697,152.91,152.87,3.2705]
[1727224427094,10.99,152.93,152.86,1.34]
[1727224427293,1.3398,152.92,152.86,1.34]
[1727224427490,12.3298,152.92,152.86,1.34]
[1727224428591,3.2701,152.9,152.86,4.6107]
[1727224429186,3.2701,152.9,152.86,1.34]
[1727224429401,10.99,152.9,152.8,338.0]
[1727224429990,3.2707,152.87,152.8,338.0]
[1727224430196,6.53869777,152.87,152.8,338.0]
[1727224430398,3.26799777,152.87,152.8,338.0]
[1727224430700,10.99,152.88,152.79,351.5524]
[1727224430897,3.34390855,152.87,152.79,351.5524]
[1727224431294,10.99,152.86,152.79,340.5624]
[1727224431803,10.99,152.86,152.73,416.5]
[1727224431997,10.99,152.84,152.74,12.3303]
[1727224432398,10.99,152.84,152.76,3.2729]
[1727224432399,3.2721,152.8,152.76,3.2729]
[1727224433104,10.99,152.82,152.74,1.3403]
[1727224434301,3.2721,152.8,152.76,3.2729]
[1727224435305,10.99,152.82,152.77,3.2725]
[1727224435603,3.21987828,152.84,152.74,1.3403]
[1727224435789,1.3465,152.85,152.77,10.99]
[1727224435997,1.3465,152.85,152.79,10.99]
[1727224436204,3.3526444,152.86,152.79,10.99]
[1727224436399,3.2709,152.86,152.81,3.2717]
[1727224436606,6.61765108,152.86,152.81,3.2717]
[1727224436898,3.2709,152.86,152.81,3.2717]
[1727224437607,6.4691264,152.86,152.81,3.2717]
[1727224440406,6.4691264,152.86,152.8,3.272]
[1727224440407,3.271,152.85,152.8,3.272]
[1727224441100,3.2712,152.84,152.79,3.2722]
[1727224441297,3.32568887,152.83,152.77,338.0]
[1727224441505,3.2716,152.83,152.78,3.2724]
[1727224441808,3.34140233,152.82,152.78,3.2724]
[1727224443312,6.61300233,152.82,152.78,3.2724]
[1727224443509,3.2716,152.82,152.78,3.2724]
[1727224443912,3.2718,152.81,152.78,3.2724]
[1727224446614,3.2718,152.81,152.74,339.3403]
[1727224446615,3.272,152.8,152.77,3.2726]
[1727224446813,3.272,152.8,152.74,339.3403]
[1727224447009,3.272,152.8,152.74,1.3403]
[1727224447510,3.272,152.8,152.76,3.2727]
[1727224448218,3.2723,152.79,152.76,3.2727]
[1727224448711,3.2725,152.78,152.75,3.2731]
[1727224449216,78.52,152.92,152.76,10.99]
[1727224449412,10.99,152.88,152.78,10.99]
[1727224449720,14.18396241,152.88,152.8,10.99]
[1727224450314,17.45446241,152.88,152.83,3.2712]
[1727224450715,10.99,153.0,152.79,1.353]
[1727224450716,71.05785348,153.06,152.9,3.2697]
[1727224450917,10.99,152.95,152.86,10.99]
[1727224451111,14.31875008,152.95,152.87,1.353]
[1727224451312,10.99,152.91,152.87,1.353]
[1727224452008,11.3762,152.81,152.72,10.99]
[1727224452212,2.7028,152.9,152.73,1.3959]
[1727224452414,10.99,152.82,152.73,1.3959]
[1727224452614,3.25410855,152.82,152.73,1.3959]
[1727224452915,3.25410855,152.82,152.69,1.2727]
[1727224452916,10.99,152.78,152.71,3.274]
[1727224454319,3.2724,152.79,152.71,3.274]
[1727224454915,3.2725,152.78,152.71,3.274]
[1727224455626,3.2728,152.77,152.7,3.2742]
[1727224455823,17.62,152.8,152.69,2.6686]
[1727224456126,17.62,152.77,152.69,1.3959]
[1727224456323,3.2735,152.74,152.69,1.3959]
[1727224459131,3.21072972,152.82,152.69,1.3959]
[1727224459132,3.2732,152.75,152.69,1.3959]
[1727224459432,205.03832073,160.78,152.73,17.62]
[1727224459433,2.6492,152.87,152.73,17.62]
[1727224459624,20.2692,152.87,152.73,355.62]
[1727224459823,3.2714,152.83,152.73,355.62]
[1727224460528,3.2714,152.83,152.76,3.2727]
[1727224461027,20.2692,152.87,152.76,3.2729]
[1727224461732,3.2716,152.82,152.76,3.2729]
[1727224463027,3.2716,152.82,152.77,3.2726]
[1727224463935,3.2714,152.83,152.77,3.2726]
[1727224464528,2.6492,152.87,152.76,17.62]
[1727224464728,2.6492,152.87,152.77,4.0504]
[1727224465027,3.34085776,152.88,152.77,4.0504]
[1727224465028,3.34085776,152.88,152.83,3.2712]
[1727224465424,3.2703,152.89,152.78,355.62]
[1727224465629,6.50409174,152.89,152.78,355.62]
[1727224467036,3.2703,152.88,152.84,3.2712]
[1727224467829,3.2703,152.88,152.78,355.62]
[1727224468336,3.2703,152.88,152.83,3.2712]
[1727224468537,3.2703,152.88,152.78,355.62]
[1727224469038,3.2703,152.88,152.84,3.271]
[1727224469535,3.23379174,152.89,152.78,355.62]
[1727224469930,3.31827703,152.89,152.78,355.62]
[1727224470133,18.8817,152.92,152.78,355.62]
[1727224470730,22.22190686,152.92,152.78,355.62]
[1727224471133,3.2701,152.9,152.85,3.2708]
[1727224473036,22.22190686,152.92,152.78,355.62]
[1727224473037,22.22190686,152.92,152.87,3.2704]
[1727224473443,22.22190686,152.92,152.81,17.62]
[1727224473632,3.2698,152.91,152.86,3.2707]
[1727224475041,3.27,152.9,152.86,3.2707]
[1727224479146,3.27,152.9,152.85,3.2709]
[1727224480940,13.62563667,152.91,152.83,2.7159]
[1727224481141,10.99,152.89,152.83,2.7159]
[1727224481542,10.99,152.89,152.83,5.9872]
[1727224481742,10.99,152.89,152.83,4.6065]
[1727224482151,3.2704,152.88,152.83,4.6065]
[1727224482549,3.2704,152.88,152.84,3.2712]
[1727224484548,3.2706,152.87,152.83,4.6066]
[1727224485252,4.60190686,152.92,152.83,12.3252]
[1727224485552,1.319,152.95,152.86,10.99]
[1727224485756,4.54628917,152.95,152.86,10.99]
[1727224485950,10.99,152.94,152.84,351.6509]
[1727224486251,3.34969118,152.93,152.84,351.6509]
[1727224486446,12.309,152.95,152.84,351.6509]
[1727224486655,3.2693,152.93,152.87,3.2704]
[1727224486954,6.52277142,152.93,152.87,3.2704]
[1727224487854,6.52277142,152.93,152.88,3.2703]
[1727224488247,13.69136366,152.94,152.88,10.99]
[1727224488446,1.3129,152.98,152.9,10.99]
[1727224488749,3.2684,152.97,152.9,10.99]
[1727224489450,1.3129,152.98,152.9,10.99]
[1727224489451,4.5811,152.98,152.9,10.99]
[1727224490852,4.5811,152.98,152.93,3.2692]
[1727224491448,16.96270946,152.99,152.94,3.269]
[1727224491653,13.69470946,152.99,152.94,3.269]
[1727224492055,27.95260946,153.0,152.94,3.269]
[1727224492253,13.69470946,152.99,152.95,3.2688]
[1727224492855,14.2579,153.0,152.95,3.2688]
[1727224492856,3.2679,153.0,152.95,3.2688]
[1727224493062,16.96131231,153.01,152.95,3.2688]
[1727224495258,3.2678,153.0,152.95,3.2688]
[1727224495553,13.69371231,153.01,152.91,12.2905]
[1727224495554,13.69371231,153.01,152.97,3.2684]
[1727224495757,14.2205217,153.03,152.91,12.2905]
[1727224495956,13.69371231,153.02,152.91,350.2905]
[1727224496152,10.99,153.03,152.95,3.2686]
[1727224496346,10.99,153.03,152.91,350.2905]
[1727224497050,3.2679,153.0,152.91,350.2905]
[1727224497555,3.2679,153.0,152.94,3.2688]
[1727224497747,3.2679,153.0,152.91,350.2905]
[1727224498351,6.52872788,153.0,152.95,3.2687]
[1727224498551,20.19892923,153.0,152.95,3.2687]
[1727224498759,13.67020135,152.99,152.91,350.2905]
[1727224498957,1.2658,153.04,152.91,350.2905]
[1727224498958,10.99,153.01,152.95,3.2687]
[1727224499759,10.99,153.0,152.91,350.2905]
[1727224500262,3.268,152.99,152.91,350.2905]
[1727224500859,3.2682,152.98,152.91,350.2905]
[1727224501963,3.2682,152.98,152.93,3.2692]
[1727224503061,24.66020135,152.99,152.91,338.0]
[1727224503364,10.99,152.99,152.91,338.0]
[1727224503572,3.2688,152.96,152.91,341.2695]
[1727224503955,10.99,152.99,152.91,341.2695]
[1727224503956,13.67020135,152.98,152.91,341.2695]
[1727224504161,10.99,152.99,152.91,341.2695]
[1727224504751,24.66020135,152.99,152.91,341.2695]
[1727224504956,3.2688,152.96,152.91,341.2695]
[1727224505165,3.23204239,152.95,152.91,341.2695]
[1727224505361,3.2688,152.96,152.91,341.2695]
[1727224505755,6.59766301,152.96,152.91,341.2695]
[1727224506463,3.2688,152.95,152.91,341.2695]
[1727224507363,3.2405469,152.95,152.91,338.0]
[1727224507554,2.7145,152.98,152.91,338.0]
[1727224507758,10.99,152.96,152.91,338.0]
[1727224507955,3.2693,152.94,152.89,82.69465743]
[1727224511672,3.2693,152.94,152.9,3.2699]
[1727224512364,3.2689,152.95,152.91,3.2696]
[1727224512960,3.26550696,152.94,152.89,1.3745]
[1727224513168,3.32798436,152.93,152.89,1.3745]
[1727224513367,10.99,152.96,152.89,1.3745]
[1727224513567,13.64077986,153.03,152.89,1.3745]
[1727224513763,10.99,152.98,152.89,1.3745]
[1727224514166,10.99,152.98,152.92,3.2693]
[1727224514372,10.99,152.98,152.89,1.3745]
[1727224514963,15.03337986,153.02,152.89,1.3745]
[1727224515169,10.99,153.0,152.89,1.3745]
[1727224515668,3.2684,152.98,152.93,3.2691]
[1727224515967,10.99,152.99,152.93,3.2691]
[1727224516468,10.99,152.99,152.89,1.3745]
[1727224517169,3.2687,152.96,152.91,3.2695]
[1727224517475,6.47556232,152.96,152.91,3.2695]
[1727224518072,3.20686232,152.96,152.9,3.2698]
[1727224518269,10.99,152.97,152.9,3.2698]
[1727224518864,3.2688,152.95,152.91,3.2697]
[1727224519070,3.27358337,152.94,152.91,3.2697]
[1727224521367,6.54258337,152.94,152.91,3.2697]
[1727224521577,3.269,152.94,152.91,3.2697]
[1727224522172,3.269,152.94,152.9,3.2698]
[1727224522173,6.46864074,152.94,152.9,3.2698]
[1727224522983,3.19964074,152.94,152.87,4.387]
[1727224523174,3.19964074,152.94,152.88,10.99]
[1727224523375,13.64145091,152.97,152.88,12.3887]
[1727224523573,3.2688,152.96,152.92,3.2694]
[1727224523772,3.31861012,152.95,152.92,3.2694]
[1727224525277,16.91064226,152.97,152.92,3.2694]
[1727224525477,3.2685,152.97,152.92,3.2694]
[1727224525878,3.26069886,152.96,152.93,3.2692]
[1727224526075,3.2685,152.97,152.93,3.2692]
[1727224527376,13.65540942,152.98,152.92,3.2694]
[1727224527377,3.2687,152.96,152.92,3.2694]
[1727224527581,3.21959039,152.95,152.92,3.2694]
[1727224527878,3.21959039,152.95,152.89,3.0]
[1727224528080,13.65540942,152.97,152.89,3.0]
[1727224528287,13.65540942,152.96,152.89,3.0]
[1727224528481,16.92440942,152.95,152.9,3.2698]
[1727224528678,13.65540942,152.94,152.9,3.2698]
[1727224528879,3.31643002,152.95,152.89,3.0]
[1727224529076,3.2692,152.94,152.89,6.27]
[1727224529278,3.33180658,152.93,152.89,6.27]
[1727224530383,3.33180658,152.93,152.9,3.2699]
[1727224530586,6.60110658,152.93,152.89,3.0]
[1727224530889,3.2693,152.93,152.89,3.0]
[1727224531384,6.46239036,152.93,152.89,3.0]
[1727224531774,6.46239036,152.93,152.89,6.27]
[1727224532373,6.46239036,152.93,152.89,13.31]
[1727224532585,20.11779978,152.93,152.89,13.31]
[1727224533383,13.65540942,152.93,152.9,7.04]
[1727224533686,13.65540942,152.92,152.89,3.0]
[1727224533880,7.04,152.96,152.91,7.04]
[1727224534281,10.37790724,152.96,152.91,7.04]
[1727224534478,13.64660724,152.96,152.92,3.2693]
[1727224534683,13.70975151,152.95,152.92,3.2693]
[1727224536682,3.33790724,152.96,152.89,14.0]
[1727224536886,13.71551973,152.98,152.89,3.0]
[1727224537098,13.71551973,152.97,152.89,3.0]
[1727224537391,3.269,152.95,152.9,3.2698]
[1727224537689,3.3106477,152.94,152.92,3.0]
[1727224538098,17.02616743,152.94,152.92,3.0]
[1727224538592,3.3106477,152.94,152.92,3.0]
[1727224539387,3.2687,152.96,152.92,3.0]
[1727224539586,6.48481384,152.96,152.92,3.0]
[1727224540896,6.48481384,152.96,152.92,6.2694]
[1727224543397,6.48481384,152.96,152.94,3.0]
[1727224545894,3.2688,152.95,152.94,3.0]
[1727224546590,3.2688,152.95,152.87,1.387]
[1727224546591,3.19035466,152.95,152.81,338.0]
[1727224546791,11.0,152.92,152.82,3.9817]
[1727224546997,14.22896217,152.92,152.82,3.9817]
[1727224547193,3.2702,152.89,152.84,3.2711]
[1727224548703,3.2702,152.89,152.85,3.271]
[1727224549709,3.27,152.9,152.85,3.271]
[1727224557502,13.71551973,152.91,152.82,14.9817]
[1727224558404,7.04,152.88,152.84,3.2711]
[1727224559407,10.3103,152.88,152.84,3.2711]
[1727224560414,10.3103,152.88,152.84,10.3111]
[1727224561806,10.3103,152.88,152.84,3.2711]